fUST/lending_fUST_20260510
["ID","MTS","AMOUNT","RATE_DAILY","PERIOD"]
[421937192,1778352650000,-500.0,0.0001178,2]
[421937197,1778352650000,-500.0,0.0001178,2]
[421937194,1778352650000,-500.0,0.0001178,2]
[421937193,1778352650000,-500.0,0.0001178,2]
[421937199,1778352650000,-1099.83,0.0001178,2]
[421937201,1778352650000,-1368.76,0.0001178,2]
[421937212,1778352650000,-500.0,0.0001178,2]
[421937213,1778352650000,-500.0,0.0001178,2]
[421937202,1778352650000,-500.0,0.0001178,2]
[421937203,1778352650000,-500.0,0.0001178,2]
[421937205,1778352650000,-500.0,0.0001178,2]
[421937210,1778352650000,-500.0,0.0001178,2]
[421937200,1778352650000,-2350.62,0.0001178,2]
[421937207,1778352650000,-500.0,0.0001178,2]
[421937208,1778352650000,-500.0,0.0001178,2]
[421937209,1778352650000,-500.0,0.0001178,2]
[421937206,1778352650000,-500.0,0.0001178,2]
[421937204,1778352650000,-500.0,0.0001178,2]
[421937214,1778352650000,-500.0,0.0001178,2]
[421937217,1778352650000,-500.0,0.0001178,2]
[421937218,1778352650000,-500.0,0.0001178,2]
[421937248,1778352650000,-1332.81,0.0001178,2]
[421937250,1778352650000,-373.16192867,0.0001178,2]
[421937249,1778352650000,-501.55459609,0.0001178,2]
[421937279,1778352650000,-756.93,0.0001178,2]
[421937293,1778352650000,-500.0,0.0001178,2]
[421937283,1778352650000,-500.0,0.0001178,2]
[421937294,1778352650000,-221.51235175,0.0001178,2]
[421937282,1778352650000,-2757.49,0.0001178,2]
[421937284,1778352650000,-500.0,0.0001178,2]
[421937285,1778352650000,-396.1657195,0.0001178,2]
[421937286,1778352650000,-500.0,0.0001178,2]
[421937289,1778352650000,-500.0,0.0001178,2]
[421937292,1778352650000,-500.0,0.0001178,2]
[421937287,1778352650000,-500.0,0.0001178,2]
[421937291,1778352650000,-500.0,0.0001178,2]
[421937288,1778352650000,-500.0,0.0001178,2]
[421937307,1778352650000,-500.0,0.0001178,2]
[421937303,1778352650000,-1101.45,0.0001178,2]
[421937300,1778352650000,-500.0,0.0001178,2]
[421937295,1778352650000,-500.0,0.0001178,2]
[421937308,1778352650000,-583.92269342,0.0001178,2]
[421937304,1778352650000,-500.0,0.0001178,2]
[421937297,1778352650000,-500.0,0.0001178,2]
[421937305,1778352650000,-500.0,0.0001178,2]
[421937299,1778352650000,-695.8,0.0001178,2]
[421937298,1778352650000,-794.28,0.0001178,2]
[421937296,1778352650000,-1927.92,0.0001178,2]
[421937306,1778352650000,-500.0,0.0001178,2]
[421937301,1778352650000,-500.0,0.0001178,2]
[421937302,1778352650000,-500.0,0.0001178,2]
[421937280,1778352650000,-500.0,0.0001178,2]
[421937275,1778352650000,-500.0,0.0001178,2]
[421937290,1778352650000,-500.0,0.0001178,2]
[421937281,1778352650000,-2660.74,0.0001178,2]
[421937256,1778352650000,-1238.06,0.0001178,2]
[421937278,1778352650000,-500.0,0.0001178,2]
[421937246,1778352650000,-500.0,0.0001178,2]
[421937252,1778352650000,-500.0,0.0001178,2]
[421937255,1778352650000,-500.0,0.0001178,2]
[421937253,1778352650000,-500.0,0.0001178,2]
[421937254,1778352650000,-500.0,0.0001178,2]
[421937251,1778352650000,-500.0,0.0001178,2]
[421937267,1778352650000,-557.58,0.0001178,2]
[421937257,1778352650000,-500.0,0.0001178,2]
[421937266,1778352650000,-500.0,0.0001178,2]
[421937263,1778352650000,-500.0,0.0001178,2]
[421937259,1778352650000,-500.0,0.0001178,2]
[421937265,1778352650000,-1710.79,0.0001178,2]
[421937258,1778352650000,-320.08522988,0.0001178,2]
[421937260,1778352650000,-500.0,0.0001178,2]
[421937277,1778352650000,-500.0,0.0001178,2]
[421937273,1778352650000,-500.0,0.0001178,2]
[421937271,1778352650000,-500.0,0.0001178,2]
[421937274,1778352650000,-500.0,0.0001178,2]
[421937272,1778352650000,-500.0,0.0001178,2]
[421937270,1778352650000,-393.61640317,0.0001178,2]
[421937276,1778352650000,-500.0,0.0001178,2]
[421937261,1778352650000,-500.0,0.0001178,2]
[421937269,1778352650000,-2948.1,0.0001178,2]
[421937264,1778352650000,-500.0,0.0001178,2]
[421937262,1778352650000,-500.0,0.0001178,2]
[421937268,1778352650000,-500.0,0.0001178,2]
[421937359,1778352651000,-3000.0,0.00012,2]
[421937352,1778352651000,-500.0,0.0001178,2]
[421937360,1778352651000,-1362.0463,0.00012054,2]
[421937351,1778352651000,-500.0,0.0001178,2]
[421937350,1778352651000,-779.15,0.0001178,2]
[421937349,1778352651000,-500.0,0.0001178,2]
[421937339,1778352651000,-1110.63,0.0001178,2]
[421937342,1778352651000,-500.0,0.0001178,2]
[421937345,1778352651000,-500.0,0.0001178,2]
[421937344,1778352651000,-500.0,0.0001178,2]
[421937343,1778352651000,-1200.3,0.0001178,2]
[421937338,1778352651000,-500.0,0.0001178,2]
[421937348,1778352651000,-500.0,0.0001178,2]
[421937355,1778352651000,-6961.89072382,0.00011804,21]
[421937366,1778352651000,-500.0,0.00012054,2]
[421937354,1778352651000,-793.0,0.000118,2]
[421937353,1778352651000,-151.0,0.000118,2]
[421937357,1778352651000,-864.0,0.00011851,2]
[421937358,1778352651000,-151.0,0.000119,2]
[421937362,1778352651000,-500.0,0.00012054,2]
[421937368,1778352651000,-632.04,0.00012054,2]
[421937374,1778352651000,-500.0,0.00012054,2]
[421937372,1778352651000,-500.0,0.00012054,2]
[421937361,1778352651000,-500.0,0.00012054,2]
[421937363,1778352651000,-500.0,0.00012054,2]
[421937369,1778352651000,-1136.28,0.00012054,2]
[421937364,1778352651000,-500.0,0.00012054,2]
[421937367,1778352651000,-500.0,0.00012054,2]
[421937337,1778352651000,-500.0,0.0001178,2]
[421937356,1778352651000,-6098.11683227,0.00011835,2]
[421937346,1778352651000,-500.0,0.0001178,2]
[421937313,1778352651000,-500.0,0.0001178,2]
[421937341,1778352651000,-713.58,0.0001178,2]
[421937310,1778352651000,-280.61486786,0.0001178,2]
[421937316,1778352651000,-500.0,0.0001178,2]
[421937365,1778352651000,-500.0,0.00012054,2]
[421937321,1778352651000,-500.0,0.0001178,2]
[421937317,1778352651000,-500.0,0.0001178,2]
[421937314,1778352651000,-500.0,0.0001178,2]
[421937312,1778352651000,-500.0,0.0001178,2]
[421937320,1778352651000,-500.0,0.0001178,2]
[421937315,1778352651000,-500.0,0.0001178,2]
[421937311,1778352651000,-500.0,0.0001178,2]
[421937319,1778352651000,-500.0,0.0001178,2]
[421937309,1778352651000,-500.0,0.0001178,2]
[421937318,1778352651000,-500.0,0.0001178,2]
[421937325,1778352651000,-541.21,0.0001178,2]
[421937326,1778352651000,-746.71,0.0001178,2]
[421937329,1778352651000,-500.0,0.0001178,2]
[421937332,1778352651000,-538.40397595,0.0001178,2]
[421937331,1778352651000,-500.0,0.0001178,2]
[421937335,1778352651000,-151.0,0.0001178,2]
[421937324,1778352651000,-500.0,0.0001178,2]
[421937334,1778352651000,-500.0,0.0001178,2]
[421937333,1778352651000,-151.0,0.0001178,2]
[421937322,1778352651000,-500.0,0.0001178,2]
[421937327,1778352651000,-500.0,0.0001178,2]
[421937330,1778352651000,-151.0,0.0001178,2]
[421937328,1778352651000,-151.0,0.0001178,2]
[421937323,1778352651000,-500.0,0.0001178,2]
[421937336,1778352651000,-503.08,0.0001178,2]
[421937347,1778352651000,-500.0,0.0001178,2]
[421937340,1778352651000,-648.68636542,0.0001178,2]
[421937370,1778352651000,-500.0,0.00012054,2]
[421937437,1778352651000,-500.0,0.00012054,2]
[421937371,1778352651000,-500.0,0.00012054,2]
[421937406,1778352651000,-590.38,0.00012054,2]
[421937413,1778352651000,-500.0,0.00012054,2]
[421937407,1778352651000,-500.0,0.00012054,2]
[421937411,1778352651000,-668.86,0.00012054,2]
[421937409,1778352651000,-500.0,0.00012054,2]
[421937419,1778352651000,-947.74,0.00012054,2]
[421937420,1778352651000,-500.0,0.00012054,2]
[421937423,1778352651000,-564.96426724,0.00012054,2]
[421937422,1778352651000,-500.0,0.00012054,2]
[421937414,1778352651000,-500.0,0.00012054,2]
[421937421,1778352651000,-500.0,0.00012054,2]
[421937415,1778352651000,-500.0,0.00012054,2]
[421937418,1778352651000,-500.0,0.00012054,2]
[421937424,1778352651000,-1332.81,0.00012054,2]
[421937425,1778352651000,-500.0,0.00012054,2]
[421937417,1778352651000,-500.0,0.00012054,2]
[421937416,1778352651000,-962.42,0.00012054,2]
[421937435,1778352651000,-500.0,0.00012054,2]
[421937427,1778352651000,-500.0,0.00012054,2]
[421937432,1778352651000,-500.0,0.00012054,2]
[421937431,1778352651000,-500.0,0.00012054,2]
[421937434,1778352651000,-500.0,0.00012054,2]
[421937430,1778352651000,-528.63121437,0.00012054,2]
[421937428,1778352651000,-500.0,0.00012054,2]
[421937426,1778352651000,-554.91,0.00012054,2]
[421937429,1778352651000,-1238.06,0.00012054,2]
[421937438,1778352651000,-557.58,0.00012054,2]
[421937373,1778352651000,-500.0,0.00012054,2]
[421937436,1778352651000,-1710.79,0.00012054,2]
[421937405,1778352651000,-500.0,0.00012054,2]
[421937408,1778352651000,-500.0,0.00012054,2]
[421937433,1778352651000,-500.0,0.00012054,2]
[421937412,1778352651000,-1926.76,0.00012054,2]
[421937410,1778352651000,-1446.54,0.00012054,2]
[421937376,1778352651000,-996.71,0.00012054,2]
[421937377,1778352651000,-500.0,0.00012054,2]
[421937378,1778352651000,-500.0,0.00012054,2]
[421937379,1778352651000,-500.0,0.00012054,2]
[421937380,1778352651000,-500.0,0.00012054,2]
[421937386,1778352651000,-2498.94,0.00012054,2]
[421937387,1778352651000,-1451.36,0.00012054,2]
[421937385,1778352651000,-598.44,0.00012054,2]
[421937383,1778352651000,-555.45,0.00012054,2]
[421937381,1778352651000,-491.3,0.00012054,2]
[421937384,1778352651000,-1119.62,0.00012054,2]
[421937382,1778352651000,-1688.15,0.00012054,2]
[421937389,1778352651000,-500.0,0.00012054,2]
[421937399,1778352651000,-500.0,0.00012054,2]
[421937375,1778352651000,-500.0,0.00012054,2]
[421937395,1778352651000,-1368.76,0.00012054,2]
[421937391,1778352651000,-500.0,0.00012054,2]
[421937403,1778352651000,-500.0,0.00012054,2]
[421937404,1778352651000,-1115.35,0.00012054,2]
[421937401,1778352651000,-500.0,0.00012054,2]
[421937398,1778352651000,-500.0,0.00012054,2]
[421937397,1778352651000,-500.0,0.00012054,2]
[421937402,1778352651000,-500.0,0.00012054,2]
[421937394,1778352651000,-2350.62,0.00012054,2]
[421937396,1778352651000,-500.0,0.00012054,2]
[421937393,1778352651000,-1099.83,0.00012054,2]
[421937390,1778352651000,-13362.14,0.00012054,2]
[421937400,1778352651000,-568.45,0.00012054,2]
[421937392,1778352651000,-151.0,0.00012054,2]
[421937388,1778352651000,-198.91635136,0.00012054,2]
[421937491,1778352652000,-1110.63,0.00012054,2]
[421937480,1778352652000,-500.0,0.00012054,2]
[421937478,1778352652000,-500.0,0.00012054,2]
[421937489,1778352652000,-503.08,0.00012054,2]
[421937479,1778352652000,-500.0,0.00012054,2]
[421937475,1778352652000,-500.0,0.00012054,2]
[421937472,1778352652000,-500.0,0.00012054,2]
[421937471,1778352652000,-500.0,0.00012054,2]
[421937469,1778352652000,-1101.45,0.00012054,2]
[421937466,1778352652000,-794.28,0.00012054,2]
[421937481,1778352652000,-500.0,0.00012054,2]
[421937468,1778352652000,-500.0,0.00012054,2]
[421937467,1778352652000,-500.0,0.00012054,2]
[421937484,1778352652000,-541.21,0.00012054,2]
[421937482,1778352652000,-500.0,0.00012054,2]
[421937483,1778352652000,-500.0,0.00012054,2]
[421937486,1778352652000,-500.0,0.00012054,2]
[421937488,1778352652000,-500.0,0.00012054,2]
[421937485,1778352652000,-746.71,0.00012054,2]
[421937487,1778352652000,-500.0,0.00012054,2]
[421937503,1778352652000,-2852.2456689,0.00012067,2]
[421937493,1778352652000,-500.0,0.00012054,2]
[421937495,1778352652000,-500.0,0.00012054,2]
[421937504,1778352652000,-4270.19111263,0.00012116,2]
[421937494,1778352652000,-1200.3,0.00012054,2]
[421937500,1778352652000,-779.15,0.00012054,2]
[421937476,1778352652000,-500.0,0.00012054,2]
[421937490,1778352652000,-500.0,0.00012054,2]
[421937474,1778352652000,-500.0,0.00012054,2]
[421937454,1778352652000,-390.13609838,0.00012054,2]
[421937470,1778352652000,-500.0,0.00012054,2]
[421937439,1778352652000,-500.0,0.00012054,2]
[421937447,1778352652000,-500.0,0.00012054,2]
[421937441,1778352652000,-500.0,0.00012054,2]
[421937445,1778352652000,-500.0,0.00012054,2]
[421937452,1778352652000,-2757.49,0.00012054,2]
[421937446,1778352652000,-644.00836025,0.00012054,2]
[421937451,1778352652000,-2660.74,0.00012054,2]
[421937440,1778352652000,-2948.1,0.00012054,2]
[421937442,1778352652000,-500.0,0.00012054,2]
[421937449,1778352652000,-756.93,0.00012054,2]
[421937444,1778352652000,-500.0,0.00012054,2]
[421937448,1778352652000,-500.0,0.00012054,2]
[421937443,1778352652000,-500.0,0.00012054,2]
[421937450,1778352652000,-500.0,0.00012054,2]
[421937464,1778352652000,-1927.92,0.00012054,2]
[421937455,1778352652000,-500.0,0.00012054,2]
[421937457,1778352652000,-500.0,0.00012054,2]
[421937460,1778352652000,-500.0,0.00012054,2]
[421937459,1778352652000,-500.0,0.00012054,2]
[421937458,1778352652000,-500.0,0.00012054,2]
[421937456,1778352652000,-500.0,0.00012054,2]
[421937453,1778352652000,-500.0,0.00012054,2]
[421937465,1778352652000,-695.8,0.00012054,2]
[421937463,1778352652000,-500.0,0.00012054,2]
[421937492,1778352652000,-713.58,0.00012054,2]
[421937461,1778352652000,-500.0,0.00012054,2]
[421937473,1778352652000,-500.0,0.00012054,2]
[421937477,1778352652000,-500.0,0.00012054,2]
[421937502,1778352652000,-500.0,0.00012054,2]
[421937462,1778352652000,-500.0,0.00012054,2]
[421937499,1778352652000,-500.0,0.00012054,2]
[421937532,1778352652000,-341.0,0.00012203,2]
[421937534,1778352652000,-650.0,0.00012203,2]
[421937531,1778352652000,-650.0,0.00012203,2]
[421937540,1778352652000,-341.0,0.00012203,2]
[421937539,1778352652000,-650.0,0.00012203,2]
[421937537,1778352652000,-650.0,0.00012203,2]
[421937542,1778352652000,-341.0,0.00012203,2]
[421937547,1778352652000,-650.0,0.00012203,2]
[421937544,1778352652000,-341.0,0.00012203,2]
[421937541,1778352652000,-650.0,0.00012203,2]
[421937548,1778352652000,-341.0,0.00012203,2]
[421937546,1778352652000,-341.0,0.00012203,2]
[421937549,1778352652000,-650.0,0.00012203,2]
[421937538,1778352652000,-341.0,0.00012203,2]
[421937545,1778352652000,-650.0,0.00012203,2]
[421937555,1778352652000,-341.0,0.00012203,2]
[421937559,1778352652000,-341.0,0.00012203,2]
[421937553,1778352652000,-650.0,0.00012203,2]
[421937560,1778352652000,-650.0,0.00012203,2]
[421937556,1778352652000,-650.0,0.00012203,2]
[421937550,1778352652000,-341.0,0.00012203,2]
[421937551,1778352652000,-650.0,0.00012203,2]
[421937557,1778352652000,-341.0,0.00012203,2]
[421937554,1778352652000,-650.0,0.00012203,2]
[421937552,1778352652000,-341.0,0.00012203,2]
[421937558,1778352652000,-650.0,0.00012203,2]
[421937496,1778352652000,-500.0,0.00012054,2]
[421937533,1778352652000,-650.0,0.00012203,2]
[421937524,1778352652000,-341.0,0.00012203,2]
[421937543,1778352652000,-650.0,0.00012203,2]
[421937530,1778352652000,-341.0,0.00012203,2]
[421937536,1778352652000,-341.0,0.00012203,2]
[421937497,1778352652000,-500.0,0.00012054,2]
[421937498,1778352652000,-500.0,0.00012054,2]
[421937501,1778352652000,-500.0,0.00012054,2]
[421937506,1778352652000,-156.0,0.00012203,2]
[421937505,1778352652000,-200.24093891,0.00012203,2]
[421937507,1778352652000,-341.0,0.00012203,2]
[421937509,1778352652000,-341.0,0.00012203,2]
[421937508,1778352652000,-341.0,0.00012203,2]
[421937511,1778352652000,-341.0,0.00012203,2]
[421937512,1778352652000,-341.0,0.00012203,2]
[421937514,1778352652000,-341.0,0.00012203,2]
[421937516,1778352652000,-341.0,0.00012203,2]
[421937515,1778352652000,-341.0,0.00012203,2]
[421937510,1778352652000,-341.0,0.00012203,2]
[421937528,1778352652000,-341.0,0.00012203,2]
[421937526,1778352652000,-650.0,0.00012203,2]
[421937518,1778352652000,-650.0,0.00012203,2]
[421937529,1778352652000,-650.0,0.00012203,2]
[421937535,1778352652000,-650.0,0.00012203,2]
[421937527,1778352652000,-650.0,0.00012203,2]
[421937519,1778352652000,-341.0,0.00012203,2]
[421937525,1778352652000,-650.0,0.00012203,2]
[421937521,1778352652000,-650.0,0.00012203,2]
[421937522,1778352652000,-341.0,0.00012203,2]
[421937523,1778352652000,-650.0,0.00012203,2]
[421937517,1778352652000,-341.0,0.00012203,2]
[421937520,1778352652000,-341.0,0.00012203,2]
[421937513,1778352652000,-341.0,0.00012203,2]
[421937601,1778352653000,-341.0,0.00012203,2]
[421937615,1778352653000,-341.0,0.00012203,2]
[421937614,1778352653000,-341.0,0.00012203,2]
[421937604,1778352653000,-341.0,0.00012203,2]
[421937602,1778352653000,-341.0,0.00012203,2]
[421937600,1778352653000,-341.0,0.00012203,2]
[421937598,1778352653000,-341.0,0.00012203,2]
[421937590,1778352653000,-159.22565296,0.00012203,2]
[421937599,1778352653000,-341.0,0.00012203,2]
[421937592,1778352653000,-341.0,0.00012203,2]
[421937593,1778352653000,-341.0,0.00012203,2]
[421937606,1778352653000,-341.0,0.00012203,2]
[421937594,1778352653000,-341.0,0.00012203,2]
[421937609,1778352653000,-341.0,0.00012203,2]
[421937621,1778352653000,-341.0,0.00012203,2]
[421937610,1778352653000,-341.0,0.00012203,2]
[421937605,1778352653000,-341.0,0.00012203,2]
[421937608,1778352653000,-341.0,0.00012203,2]
[421937603,1778352653000,-341.0,0.00012203,2]
[421937612,1778352653000,-341.0,0.00012203,2]
[421937613,1778352653000,-341.0,0.00012203,2]
[421937611,1778352653000,-341.0,0.00012203,2]
[421937616,1778352653000,-341.0,0.00012203,2]
[421937617,1778352653000,-341.0,0.00012203,2]
[421937627,1778352653000,-1362.0463,0.00012328,2]
[421937628,1778352653000,-500.0,0.00012328,2]
[421937618,1778352653000,-341.0,0.00012203,2]
[421937620,1778352653000,-341.0,0.00012203,2]
[421937597,1778352653000,-341.0,0.00012203,2]
[421937607,1778352653000,-341.0,0.00012203,2]
[421937595,1778352653000,-341.0,0.00012203,2]
[421937562,1778352653000,-153.57428312,0.00012203,2]
[421937596,1778352653000,-341.0,0.00012203,2]
[421937561,1778352653000,-341.0,0.00012203,2]
[421937625,1778352653000,-156.34728933,0.00012203,2]
[421937567,1778352653000,-167.0,0.00012203,2]
[421937564,1778352653000,-341.0,0.00012203,2]
[421937573,1778352653000,-341.0,0.00012203,2]
[421937574,1778352653000,-341.0,0.00012203,2]
[421937568,1778352653000,-341.0,0.00012203,2]
[421937569,1778352653000,-167.0,0.00012203,2]
[421937565,1778352653000,-341.0,0.00012203,2]
[421937563,1778352653000,-341.0,0.00012203,2]
[421937571,1778352653000,-341.0,0.00012203,2]
[421937575,1778352653000,-341.0,0.00012203,2]
[421937570,1778352653000,-167.0,0.00012203,2]
[421937566,1778352653000,-341.0,0.00012203,2]
[421937572,1778352653000,-237.65721298,0.00012203,2]
[421937577,1778352653000,-341.0,0.00012203,2]
[421937586,1778352653000,-166.0,0.00012203,2]
[421937585,1778352653000,-200.46864107,0.00012203,2]
[421937587,1778352653000,-166.0,0.00012203,2]
[421937588,1778352653000,-166.0,0.00012203,2]
[421937576,1778352653000,-341.0,0.00012203,2]
[421937579,1778352653000,-341.0,0.00012203,2]
[421937583,1778352653000,-166.0,0.00012203,2]
[421937582,1778352653000,-166.0,0.00012203,2]
[421937578,1778352653000,-341.0,0.00012203,2]
[421937581,1778352653000,-166.0,0.00012203,2]
[421937584,1778352653000,-278.61022012,0.00012203,2]
[421937580,1778352653000,-341.0,0.00012203,2]
[421937589,1778352653000,-156.0,0.00012203,2]
[421937591,1778352653000,-341.0,0.00012203,2]
[421937619,1778352653000,-341.0,0.00012203,2]
[421937660,1778352653000,-500.0,0.00012328,2]
[421937623,1778352653000,-341.0,0.00012203,2]
[421937656,1778352653000,-2350.62,0.00012328,2]
[421937658,1778352653000,-500.0,0.00012328,2]
[421937659,1778352653000,-445.8,0.00012328,2]
[421937661,1778352653000,-500.0,0.00012328,2]
[421937662,1778352653000,-500.0,0.00012328,2]
[421937665,1778352653000,-587.4731637,0.00012328,2]
[421937666,1778352653000,-590.38,0.00012328,2]
[421937663,1778352653000,-500.0,0.00012328,2]
[421937669,1778352653000,-668.86,0.00012328,2]
[421937673,1778352653000,-500.0,0.00012328,2]
[421937671,1778352653000,-500.0,0.00012328,2]
[421937674,1778352653000,-962.42,0.00012328,2]
[421937672,1778352653000,-500.0,0.00012328,2]
[421937677,1778352653000,-947.74,0.00012328,2]
[421937675,1778352653000,-500.0,0.00012328,2]
[421937678,1778352653000,-500.0,0.00012328,2]
[421937670,1778352653000,-1926.76,0.00012328,2]
[421937676,1778352653000,-628.81,0.00012328,2]
[421937679,1778352653000,-500.0,0.00012328,2]
[421937680,1778352653000,-1332.81,0.00012328,2]
[421937683,1778352653000,-1238.06,0.00012328,2]
[421937681,1778352653000,-500.0,0.00012328,2]
[421937687,1778352653000,-500.0,0.00012328,2]
[421937682,1778352653000,-500.0,0.00012328,2]
[421937684,1778352653000,-500.0,0.00012328,2]
[421937686,1778352653000,-500.0,0.00012328,2]
[421937688,1778352653000,-1710.79,0.00012328,2]
[421937690,1778352653000,-557.58,0.00012328,2]
[421937689,1778352653000,-500.0,0.00012328,2]
[421937622,1778352653000,-341.0,0.00012203,2]
[421937664,1778352653000,-1115.35,0.00012328,2]
[421937685,1778352653000,-500.0,0.00012328,2]
[421937667,1778352653000,-500.0,0.00012328,2]
[421937624,1778352653000,-341.0,0.00012203,2]
[421937626,1778352653000,-6179.65379781,0.0001229,2]
[421937640,1778352653000,-500.0,0.00012328,2]
[421937630,1778352653000,-500.0,0.00012328,2]
[421937629,1778352653000,-500.0,0.00012328,2]
[421937641,1778352653000,-500.0,0.00012328,2]
[421937642,1778352653000,-500.0,0.00012328,2]
[421937631,1778352653000,-500.0,0.00012328,2]
[421937668,1778352653000,-1446.54,0.00012328,2]
[421937633,1778352653000,-500.0,0.00012328,2]
[421937635,1778352653000,-632.04,0.00012328,2]
[421937636,1778352653000,-1136.28,0.00012328,2]
[421937637,1778352653000,-500.0,0.00012328,2]
[421937639,1778352653000,-500.0,0.00012328,2]
[421937638,1778352653000,-500.0,0.00012328,2]
[421937632,1778352653000,-500.0,0.00012328,2]
[421937645,1778352653000,-397.41,0.00012328,2]
[421937634,1778352653000,-500.0,0.00012328,2]
[421937657,1778352653000,-1368.76,0.00012328,2]
[421937652,1778352653000,-2498.94,0.00012328,2]
[421937650,1778352653000,-1119.62,0.00012328,2]
[421937651,1778352653000,-598.44,0.00012328,2]
[421937654,1778352653000,-13362.14,0.00012328,2]
[421937648,1778352653000,-1688.15,0.00012328,2]
[421937649,1778352653000,-555.45,0.00012328,2]
[421937653,1778352653000,-1451.36,0.00012328,2]
[421937647,1778352653000,-500.0,0.00012328,2]
[421937646,1778352653000,-500.0,0.00012328,2]
[421937643,1778352653000,-996.71,0.00012328,2]
[421937644,1778352653000,-500.0,0.00012328,2]
[421937655,1778352653000,-1099.83,0.00012328,2]
[421937734,1778352654000,-503.08,0.00012328,2]
[421937738,1778352654000,-1200.3,0.00012328,2]
[421937730,1778352654000,-746.71,0.00012328,2]
[421937735,1778352654000,-1110.63,0.00012328,2]
[421937733,1778352654000,-500.0,0.00012328,2]
[421937725,1778352654000,-500.0,0.00012328,2]
[421937731,1778352654000,-257.98,0.00012328,2]
[421937726,1778352654000,-500.0,0.00012328,2]
[421937736,1778352654000,-713.58,0.00012328,2]
[421937729,1778352654000,-541.21,0.00012328,2]
[421937724,1778352654000,-500.0,0.00012328,2]
[421937727,1778352654000,-500.0,0.00012328,2]
[421937732,1778352654000,-500.0,0.00012328,2]
[421937748,1778352654000,-6246.28,0.00012329,2]
[421937754,1778352654000,-2510.24,0.00012329,2]
[421937750,1778352654000,-4337.7,0.00012329,2]
[421937740,1778352654000,-500.0,0.00012328,2]
[421937737,1778352654000,-500.0,0.00012328,2]
[421937751,1778352654000,-3614.75,0.00012329,2]
[421937742,1778352654000,-500.0,0.00012328,2]
[421937744,1778352654000,-779.15,0.00012328,2]
[421937739,1778352654000,-500.0,0.00012328,2]
[421937741,1778352654000,-500.0,0.00012328,2]
[421937743,1778352654000,-555.48063581,0.00012328,2]
[421937746,1778352654000,-500.0,0.00012328,2]
[421937745,1778352654000,-500.0,0.00012328,2]
[421937747,1778352654000,-7495.54,0.00012329,2]
[421937752,1778352654000,-3012.29,0.00012329,2]
[421937728,1778352654000,-500.0,0.00012328,2]
[421937749,1778352654000,-5205.24,0.00012329,2]
[421937717,1778352654000,-1101.45,0.00012328,2]
[421937699,1778352654000,-756.93,0.00012328,2]
[421937715,1778352654000,-500.0,0.00012328,2]
[421937757,1778352654000,-1162.15,0.00012329,2]
[421937692,1778352654000,-500.0,0.00012328,2]